bitfinex/quotes_SOLUSD_20260309
["timestamp","ask_amount","ask_price","bid_price","bid_amount"]
[1773049145275,0.74913747,84.389,84.341,41.49820371]
[1773049145475,0.74913747,84.389,84.342,0.788477]
[1773049145702,0.74913747,84.379,84.342,0.788477]
[1773049145878,0.74913747,84.389,84.354,0.28432314]
[1773049146078,0.74913747,84.369,84.343,0.788477]
[1773049146474,0.74913747,84.369,84.344,11.85620791]
[1773049146780,11.56572389,84.42,84.365,0.788477]
[1773049146988,11.56572389,84.42,84.381,0.788477]
[1773049147803,11.56572389,84.41,84.381,0.788477]
[1773049148794,0.74913747,84.407,84.381,12.63941408]
[1773049148991,0.74913747,84.424,84.391,0.788477]
[1773049150683,0.74913747,84.417,84.391,0.788477]
[1773049150885,0.74913747,84.417,84.39,11.56572389]
[1773049151100,0.74913747,84.417,84.383,12.63911656]
[1773049151101,0.74913747,84.417,84.375,0.788477]
[1773049151309,0.74913747,84.417,84.381,0.788477]
[1773049153097,11.84609552,84.416,84.39,11.56572389]
[1773049153603,0.74913747,84.437,84.41,11.56572389]
[1773049153791,0.74913747,84.436,84.401,0.788477]
[1773049154492,0.74913747,84.436,84.41,11.56572389]
[1773049154697,0.74913747,84.436,84.401,0.788477]
[1773049154897,0.74913747,84.429,84.391,0.788477]
[1773049155394,0.74913747,84.427,84.392,0.788477]
[1773049155602,0.74913747,84.427,84.39,11.56572389]
[1773049155603,0.74913747,84.419,84.387,11.85008811]
[1773049156284,0.74913747,84.419,84.39,0.5]
[1773049156707,0.74913747,84.409,84.39,0.5]
[1773049156900,0.74913747,84.409,84.375,0.28432314]
[1773049157086,0.74913747,84.389,84.361,0.788477]
[1773049157386,0.74913747,84.397,84.371,0.788477]
[1773049157585,12.59792761,84.397,84.372,11.85227326]
[1773049157786,11.84879014,84.397,84.373,0.788477]
[1773049157993,47.65835857,84.435,84.381,0.788477]
[1773049157994,11.84749784,84.407,84.381,0.788477]
[1773049158798,0.74913747,84.399,84.363,3.69383402]
[1773049159099,0.74913747,84.399,84.37,11.56572389]
[1773049159402,0.74913747,84.399,84.364,0.28432314]
[1773049160508,0.74913747,84.399,84.37,11.56572389]
[1773049160509,11.848622,84.398,84.37,11.56572389]
[1773049160806,12.59663646,84.406,84.371,0.788477]
[1773049160985,0.74913747,84.405,84.371,0.788477]
[1773049161601,0.74913747,84.405,84.38,11.56572389]
[1773049161803,0.74913747,84.405,84.371,0.788477]
[1773049162506,0.74913747,84.405,84.38,11.56572389]
[1773049162697,0.74913747,84.403,84.373,1.07280014]
[1773049162900,0.74913747,84.403,84.374,0.93063857]
[1773049163800,0.74913747,84.403,84.37,11.56572389]
[1773049163999,0.74913747,84.399,84.37,11.56572389]
[1773049164808,0.74913747,84.407,84.372,0.788477]
[1773049166587,0.74913747,84.407,84.371,11.85241374]
[1773049166792,0.74913747,84.405,84.371,11.85241374]
[1773049167201,11.84648458,84.414,84.381,0.788477]
[1773049167413,11.84539391,84.421,84.391,0.788477]
[1773049167592,12.59453138,84.421,84.391,0.788477]
[1773049167909,0.74913747,84.42,84.391,0.788477]
[1773049168299,11.8448396,84.425,84.4,11.56572389]
[1773049168502,0.74913747,84.424,84.4,11.56572389]
[1773049168903,12.59425076,84.423,84.393,0.788477]
[1773049169105,11.84511329,84.423,84.393,0.788477]
[1773049169304,0.74913747,84.422,84.393,0.788477]
[1773049171221,0.74913747,84.419,84.39,11.56572389]
[1773049172090,0.74913747,84.419,84.385,11.85044735]
[1773049172296,0.74913747,84.409,84.378,11.85129554]
[1773049172909,0.74913747,84.409,84.38,0.5]
[1773049173120,0.70539912,84.407,84.381,11.85100911]
[1773049173707,0.70539912,84.407,84.38,0.5]
[1773049174414,0.70539912,84.399,84.37,11.56572389]
[1773049174641,0.70539912,84.399,84.361,0.28432314]
[1773049174920,0.70539912,84.407,84.371,0.72862217]
[1773049175101,0.70539912,84.405,84.372,11.85227326]
[1773049175607,0.70539912,84.405,84.38,11.56572389]
[1773049176009,0.70539912,84.405,84.373,0.72862217]
[1773049176418,0.70539912,84.399,84.363,3.69383402]
[1773049176726,0.70539912,84.399,84.361,0.72862217]
[1773049176900,0.70539912,84.399,84.371,0.72862217]
[1773049177318,0.70539912,84.399,84.38,11.56572389]
[1773049177526,0.70539912,84.414,84.38,11.56572389]
[1773049178825,0.70539912,84.409,84.373,0.28432314]
[1773049179121,0.70539912,84.409,84.372,11.85227326]
[1773049179314,0.70539912,84.407,84.372,11.85227326]
[1773049179614,0.70539912,84.407,84.373,0.72862217]
[1773049179815,0.70539912,84.407,84.38,11.56572389]
[1773049180018,0.70539912,84.407,84.381,0.72862217]
[1773049180422,0.70539912,84.412,84.381,0.72862217]
[1773049182324,11.84679721,84.411,84.383,0.72862217]
[1773049183025,0.70539912,84.41,84.383,0.72862217]
[1773049183212,11.84581487,84.418,84.391,0.72862217]
[1773049183830,12.55121399,84.418,84.391,0.72862217]
[1773049184029,12.55121399,84.418,84.381,41.47850847]
[1773049184030,0.70539912,84.417,84.384,0.72862217]
[1773049185404,41.46035205,84.418,84.385,11.85044735]
[1773049185405,11.84609552,84.416,84.385,11.85044735]
[1773049185726,0.70539912,84.415,84.385,11.85044735]
[1773049185900,0.70539912,84.415,84.386,0.72512101]
[1773049186314,0.70539912,84.415,84.39,11.56572389]
[1773049186934,0.70539912,84.415,84.386,0.72512101]
[1773049187606,0.63398533,84.422,84.391,0.65154322]
[1773049187829,12.47937924,84.421,84.391,0.65154322]
[1773049188132,11.84539391,84.421,84.391,0.65154322]
[1773049188336,11.84539391,84.421,84.401,0.65154322]
[1773049188828,0.63398533,84.418,84.381,0.65154322]
[1773049189005,0.63398533,84.418,84.384,0.28432314]
[1773049189210,0.63398533,84.418,84.39,4.31317843]
[1773049189842,0.63398533,84.416,84.391,11.84960481]
[1773049190015,11.845506,84.421,84.392,0.65154322]
[1773049190611,12.47949133,84.421,84.4,0.5]
[1773049191217,0.63398533,84.42,84.4,0.5]
[1773049191617,0.63398533,84.42,84.401,11.84820085]
[1773049192027,0.63398533,84.42,84.4,0.5]
[1773049192224,0.63398533,84.42,84.39,4.31267656]
[1773049192934,0.63398533,84.42,84.391,11.84955733]
[1773049193140,0.63398533,84.42,84.392,0.65154322]
[1773049193318,12.47954022,84.42,84.394,0.65154322]
[1773049193719,0.63398533,84.419,84.394,0.65154322]
[1773049194640,0.63398533,84.419,84.39,4.31267656]
[1773049194835,0.63398533,84.419,84.387,0.65154322]
[1773049194836,0.63398533,84.419,84.387,12.50159737]
[1773049195539,41.45939047,84.42,84.39,4.31267656]
[1773049195540,0.63398533,84.417,84.39,4.31267656]
[1773049196431,0.63398533,84.417,84.381,29.62735715]
[1773049196432,0.63398533,84.417,84.381,11.85088063]
[1773049196625,0.63398533,84.417,84.384,11.85058778]
[1773049196827,0.63398533,84.417,84.384,12.502131]
[1773049197123,0.63398533,84.417,84.39,4.96421978]
[1773049197325,0.63398533,84.417,84.385,0.65154322]
[1773049197530,0.63398533,84.415,84.386,11.85030692]
[1773049197930,0.63398533,84.415,84.386,12.50185014]
[1773049198118,0.63398533,84.415,84.39,4.31267656]
[1773049198741,0.63398533,84.415,84.387,0.65154322]
[1773049199248,11.84609552,84.416,84.391,0.65154322]
[1773049199622,0.63398533,84.416,84.391,0.65154322]
[1773049199827,0.63398533,84.416,84.392,11.8494644]
[1773049202153,0.63398533,84.414,84.4,0.5]
[1773049202846,0.63398533,84.414,84.39,4.31267656]
[1773049203255,0.62712892,84.409,84.348,0.64535284]
[1773049203444,41.46182549,84.415,84.36,4.31267656]
[1773049203445,0.62712892,84.399,84.36,4.31267656]
[1773049203629,0.62712892,84.399,84.361,0.64535284]
[1773049204046,0.62712892,84.397,84.363,0.64162004]
[1773049204646,0.62712892,84.428,84.391,0.64162004]
[1773049204827,0.62712892,84.428,84.4,4.31267656]
[1773049205234,0.62712892,84.419,84.38,4.31267656]
[1773049205429,0.62712892,84.419,84.4,4.31267656]
[1773049206350,0.62712892,84.417,84.397,11.84862517]
[1773049206550,0.62712892,84.447,84.401,0.63428256]
[1773049206736,0.62712892,84.429,84.391,11.84960481]
[1773049207144,0.62712892,84.429,84.39,4.31267656]
[1773049207352,0.62712892,84.429,84.39,4.81267656]
[1773049207547,29.60655172,84.441,84.39,4.81267656]
[1773049207548,0.62712892,84.419,84.39,0.5]
[1773049208656,0.62712892,84.417,84.39,0.5]
[1773049208951,0.62712892,84.417,84.39,16.66233633]
[1773049209153,1661.00882261,85.249,84.4,4.31267656]
[1773049209154,0.62712892,84.421,84.4,4.31267656]
[1773049210052,0.62712892,84.439,84.4,4.9327831]
[1773049210354,42.07716977,84.439,84.4,4.9327831]
[1773049210558,0.62712892,84.438,84.4,4.9327831]
[1773049210757,0.62712892,84.436,84.401,11.84820085]
[1773049210954,0.62712892,84.436,84.4,4.31267656]
[1773049211260,0.62712892,84.419,84.384,0.28432314]
[1773049211656,0.62712892,84.428,84.391,0.61666371]
[1773049212245,0.62712892,84.428,84.39,4.31267656]
[1773049212461,0.62712892,84.419,84.384,0.28432314]
[1773049212756,0.62712892,84.419,84.39,0.5]
[1773049212959,0.62712892,84.417,84.39,12.34972874]
[1773049213262,0.62712892,84.417,84.39,0.5]
[1773049214563,0.62712892,84.421,84.392,0.60657069]
[1773049214756,0.62712892,84.439,84.401,0.60657069]
[1773049214953,0.62712892,84.437,84.401,11.84815795]
[1773049215158,0.62712892,84.429,84.397,11.8486524]
[1773049215759,0.62712892,84.429,84.397,12.45193573]
[1773049216058,0.62712892,84.429,84.397,11.8486524]
[1773049216954,0.62712892,84.427,84.392,11.8494644]
[1773049217751,0.62712892,84.419,84.38,4.31267656]
[1773049218167,0.62712892,84.419,84.391,0.59364609]
[1773049218345,0.62712892,84.419,84.39,4.31267656]
[1773049218554,4.31267656,84.41,84.381,11.85097682]
[1773049218748,0.62712892,84.409,84.381,11.85097682]
[1773049218949,0.62712892,84.407,84.372,0.28432314]
[1773049219157,0.62712892,84.407,84.371,42.07360672]
[1773049219362,0.62712892,84.407,84.381,0.59050719]
[1773049219703,0.62712892,84.42,84.391,0.59050719]
[1773049220070,0.62712892,84.42,84.4,4.31267656]
[1773049220268,0.62712892,84.42,84.391,0.59050719]
[1773049221053,0.62712892,84.418,84.392,11.8494644]
[1773049221867,0.62712892,84.418,84.39,4.31267656]
[1773049222273,0.62712892,84.418,84.391,11.84960481]
[1773049223155,0.62712892,84.447,84.4,4.31267656]
[1773049223452,0.62712892,84.439,84.392,0.578308]
[1773049223652,0.62712892,84.429,84.392,0.578308]
[1773049225077,0.62712892,84.427,84.39,12.34966127]
[1773049225255,0.62712892,84.427,84.39,16.66233783]
[1773049225859,0.62712892,84.427,84.39,16.16233783]
[1773049226183,0.62712892,84.419,84.381,11.85100911]
[1773049227199,0.62712892,84.426,84.391,0.5666597]
[1773049227380,0.62712892,84.426,84.4,4.31267656]
[1773049227668,0.62712892,84.426,84.391,0.5666597]
[1773049227855,0.62712892,84.426,84.383,41.47754878]
[1773049227856,0.62712892,84.426,84.4,4.31267656]
[1773049228176,0.62712892,84.426,84.4,4.87650733]
[1773049230457,0.62712892,84.436,84.41,4.31267656]
[1773049230668,0.62712892,84.436,84.411,0.55827]
[1773049230669,12.47041851,84.436,84.411,0.55827]
[1773049231054,0.62712892,84.448,84.421,0.55553743]
[1773049231260,0.62712892,84.448,84.43,4.31267656]
[1773049231579,0.62712892,84.448,84.421,0.55553743]
[1773049232570,0.62712892,84.448,84.422,12.39808984]
[1773049232875,0.62712892,84.448,84.423,0.55016608]
[1773049233074,0.61437497,84.446,84.42,4.31267656]
[1773049233374,0.61437497,84.446,84.41,4.31267656]
[1773049233676,0.61437497,84.439,84.411,0.54752659]
[1773049234870,0.61437497,84.437,84.411,0.54752659]
[1773049235264,0.61437497,84.437,84.402,3.69383402]
[1773049235462,0.61437497,84.429,84.402,3.69383402]
[1773049237078,0.61437497,84.427,84.402,3.69383402]
[1773049237375,0.61437497,84.427,84.403,11.84792009]
[1773049238256,0.61437497,84.427,84.392,11.8494644]
[1773049239068,0.61437497,84.427,84.393,0.53231425]
[1773049240881,0.61437497,84.419,84.375,0.52747332]
[1773049241181,41.45642337,84.426,84.351,11.855224]
[1773049241182,0.61437497,84.389,84.351,11.855224]
[1773049241368,0.61437497,84.389,84.352,0.52747332]
[1773049243384,0.61437497,84.369,84.336,11.8572737]
[1773049243576,0.61437497,84.349,84.318,11.85981596]
[1773049243976,0.61437497,84.349,84.321,0.52041845]
[1773049244176,0.61437497,84.349,84.318,11.85981596]
[1773049245571,0.55990566,84.347,84.318,11.85981596]
[1773049246274,0.55990566,84.386,84.331,0.51360389]
[1773049246489,0.55990566,84.359,84.33,11.57408789]
[1773049247182,0.55990566,84.389,84.351,0.51138435]
[1773049247486,0.55990566,84.389,84.37,11.57408789]
[1773049247685,0.55990566,84.389,84.36,11.57408789]
[1773049247686,0.55990566,84.388,84.36,11.57408789]
[1773049247885,0.55990566,84.388,84.361,11.8538187]
[1773049248082,0.55990566,84.388,84.36,11.57408789]
[1773049248391,0.55990566,84.369,84.33,11.57408789]
[1773049248573,0.55990566,84.359,84.33,11.57408789]
[1773049248771,0.55990566,84.359,84.326,0.5091903]
[1773049248972,0.55990566,84.359,84.327,11.85859807]
[1773049249388,0.55990566,84.359,84.33,11.57408789]
[1773049249772,0.55990566,84.357,84.33,11.57408789]
[1773049249975,0.55990566,84.357,84.327,11.85859807]
[1773049250175,0.55990566,84.349,84.322,11.85920107]
[1773049251075,0.55990566,84.357,84.323,0.50275822]
[1773049251472,0.55990566,84.349,84.322,11.85920107]
[1773049251672,0.55990566,84.357,84.33,11.57295156]
[1773049251873,29.63223538,84.368,84.332,0.50066325]
[1773049251874,0.55990566,84.367,84.332,0.50066325]
[1773049252071,0.55990566,84.366,84.331,11.85803559]
[1773049253396,0.55990566,84.359,84.331,11.85803559]
[1773049253776,0.55990566,84.359,84.33,11.57295156]
[1773049253777,0.55990566,84.359,84.327,11.85852446]
[1773049254090,0.55990566,84.349,84.322,11.8592366]
[1773049254985,0.55990566,84.349,84.322,12.35375823]
[1773049255300,0.55990566,84.357,84.323,0.49452163]
[1773049255991,11.85452131,84.356,84.322,11.8592366]
[1773049256196,0.55990566,84.355,84.322,11.8592366]
[1773049256493,0.55990566,84.349,84.32,11.57295156]
[1773049257772,12.41555131,84.348,84.321,11.85944189]
[1773049257975,0.55990566,84.347,84.321,11.85944189]
[1773049258584,0.55990566,84.347,84.321,12.3480311]
[1773049258792,12.4133682,84.364,84.331,0.48858921]
[1773049258990,0.55990566,84.363,84.331,0.48858921]
[1773049259694,0.55990566,84.393,84.352,41.97944908]
[1773049259896,0.55990566,84.389,84.36,11.57295156]
[1773049260191,0.55990566,84.389,84.352,11.85508345]
[1773049260788,0.55990566,84.389,84.36,11.57295156]
[1773049261496,0.55990566,84.389,84.353,0.48474696]
[1773049261790,11.85002607,84.388,84.352,11.85508345]
[1773049261998,0.55990566,84.387,84.352,11.85508345]
[1773049263497,0.55990268,84.395,84.37,11.57295156]
[1773049263696,47.36247322,84.456,84.38,10.98042037]
[1773049263697,0.55990268,84.411,84.38,10.98042037]
[1773049263992,0.55990268,84.411,84.363,3.69383402]
[1773049263993,0.55990268,84.411,84.39,11.57295156]
[1773049264397,0.55990268,84.421,84.391,0.47552091]
[1773049264696,0.55990268,84.433,84.41,11.57295156]
[1773049264995,0.55990268,84.441,84.42,11.57295156]
[1773049266005,11.84272856,84.44,84.42,11.57295156]
[1773049266387,0.55990268,84.439,84.42,11.57295156]
[1773049267100,0.55990268,84.455,84.43,11.57295156]
[1773049267395,0.55990268,84.455,84.403,3.69383402]
[1773049267396,0.55990268,84.449,84.42,11.57295156]
[1773049267803,0.55990268,84.449,84.41,11.57295156]
[1773049268300,0.55990268,84.439,84.4,11.57295156]
[1773049268476,0.55990268,84.439,84.41,11.57295156]
[1773049269003,0.55990268,84.439,84.4,11.57295156]
[1773049269310,11.57295156,84.44,84.4,11.57295156]
[1773049269311,0.55990268,84.429,84.4,11.57295156]
[1773049270396,11.8444118,84.428,84.4,11.57295156]
[1773049270598,11.8444118,84.428,84.383,3.69383402]
[1773049270599,0.55990268,84.445,84.42,11.57295156]
[1773049272991,0.55990268,84.443,84.42,11.57295156]
[1773049273183,0.55990268,84.443,84.41,23.41975233]
[1773049273795,0.55990268,84.443,84.405,12.30782803]
[1773049274002,0.55990268,84.443,84.41,11.57295156]
[1773049274498,0.55990268,84.439,84.4,12.03154475]
[1773049274702,0.55990268,84.439,84.401,3.69383402]
[1773049274886,0.55990268,84.439,84.4,11.57295156]
[1773049275402,0.55990268,84.437,84.41,11.57295156]
[1773049276598,0.55990268,84.437,84.401,41.46870297]
[1773049276599,11.84248683,84.442,84.42,11.57295156]
[1773049277304,12.39996708,84.459,84.43,11.57295156]
[1773049277497,0.55990268,84.458,84.43,11.57295156]
[1773049277901,0.55990268,84.458,84.42,11.57295156]
[1773049278499,0.55990268,84.449,84.397,3.97815716]
[1773049278688,0.55990268,84.439,84.411,0.45235102]
[1773049278889,0.55990268,84.458,84.42,11.57295156]
[1773049280105,0.55990268,84.456,84.43,11.57295156]
[1773049281419,0.55990268,84.449,84.412,11.8466333]
[1773049281612,0.55990268,84.449,84.421,0.44785509]
[1773049281815,0.55990268,84.454,84.43,11.57295156]
[1773049282999,11.84062518,84.455,84.43,12.01789477]
[1773049283202,0.1,84.46,84.43,11.57295156]
[1773049283203,0.55990268,84.454,84.43,11.57295156]
[1773049284310,11.84090559,84.453,84.431,11.84399095]
[1773049284787,0.1,84.46,84.441,0.4435123]
[1773049285710,11.8400644,84.459,84.441,0.4435123]
[1773049286600,0.55990268,84.459,84.414,0.44069961]
[1773049286806,0.55990268,84.459,84.42,11.57295156]
[1773049286989,0.55990268,84.459,84.43,11.57295156]
[1773049287195,0.1,84.46,84.44,11.57295156]
[1773049287409,0.65990268,84.46,84.44,11.57295156]
[1773049287611,0.65990268,84.46,84.44,4.30824364]
[1773049288007,0.65990268,84.46,84.42,8.00207766]
[1773049288205,0.55990268,84.449,84.41,4.30824364]
[1773049288605,0.55990268,84.447,84.41,4.30824364]
[1773049289301,0.55990268,84.447,84.396,29.6220375]
[1773049289302,0.55990268,84.439,84.4,4.30824364]
[1773049289618,0.55990268,84.429,84.39,4.30824364]
[1773049289913,0.55990268,84.429,84.41,4.30824364]
[1773049290112,0.55990268,84.429,84.401,0.43660057]
[1773049290309,0.55990268,84.429,84.4,4.30824364]
[1773049290617,0.55990268,84.429,84.41,4.30824364]
[1773049290618,12.40419887,84.429,84.41,4.30824364]
[1773049290808,0.55990268,84.438,84.411,11.84679721]
[1773049291011,0.55990268,84.438,84.42,4.30824364]
[1773049291722,0.55990268,84.438,84.41,4.30824364]
[1773049291903,0.55990268,84.438,84.4,4.30824364]
[1773049292929,0.55990268,84.436,84.4,4.30824364]
[1773049295220,0.55990268,84.436,84.392,0.43394575]
[1773049295221,0.51960314,84.419,84.38,4.30824364]
[1773049295797,0.51960314,84.429,84.4,4.30824364]
[1773049296298,0.51960314,84.429,84.41,4.30824364]
[1773049296723,11.84342985,84.435,84.42,4.30824364]
[1773049297126,0.51960314,84.458,84.422,0.42512235]
[1773049297422,0.51960314,84.458,84.421,11.84539391]
[1773049297423,0.51960314,84.458,84.44,4.30824364]
[1773049297626,0.51960314,84.458,84.44,11.53975834]
[1773049297921,0.1,84.46,84.44,11.96488069]
[1773049298221,11.8400644,84.459,84.44,11.96488069]
[1773049298419,11.8400644,84.459,84.44,11.53975834]
[1773049298735,12.35966754,84.459,84.44,11.53975834]
[1773049299203,0.51960314,84.456,84.42,11.53975834]
[1773049299408,0.51960314,84.456,84.43,11.53975834]
[1773049299725,0.1,84.46,84.441,0.42272969]
[1773049300225,0.1,84.46,84.44,11.53975834]
[1773049300629,0.1,84.46,84.433,0.42155393]
[1773049300630,11.8400644,84.459,84.433,0.42155393]
[1773049300918,11.8400644,84.459,84.44,11.53975834]
[1773049301120,0.51960314,84.459,84.433,12.26524434]
[1773049301318,0.51960314,84.459,84.433,11.84369041]
[1773049301902,0.51960314,84.459,84.42,11.53975834]
[1773049302299,0.51960314,84.459,84.431,0.41924277]
[1773049302634,0.51960314,84.459,84.42,11.53975834]
[1773049303328,0.51960314,84.457,84.421,11.84539391]
[1773049303623,0.51960314,84.457,84.43,11.53975834]
[1773049303922,0.51960314,84.457,84.421,11.84539391]
[1773049303923,0.1,84.46,84.44,11.53975834]
[1773049305329,0.1,84.46,84.441,11.84258831]
[1773049305542,0.1,84.46,84.442,0.41587463]
[1773049305820,0.1,84.47,84.45,11.53975834]
[1773049305821,11.93865063,84.47,84.45,11.53975834]
[1773049306203,29.59665676,84.469,84.45,11.53975834]
[1773049306401,0.51960314,84.468,84.431,11.84399095]
[1773049306615,41.43531946,84.469,84.424,0.3147776]
[1773049306616,0.51960314,84.459,84.424,0.3147776]
[1773049306814,0.51960314,84.459,84.43,11.53975834]
[1773049307025,0.51960314,84.459,84.431,0.31369318]
[1773049307226,0.51960314,84.468,84.431,0.31369318]
[1773049307420,0.51960314,84.468,84.44,11.53975834]
[1773049307721,0.51960314,84.466,84.441,11.84258831]
[1773049308521,0.51960314,84.466,84.44,11.53975834]
[1773049309223,0.61960314,84.47,84.44,11.53975834]
[1773049310428,0.50601031,84.468,84.436,11.84316843]
[1773049310725,0.50601031,84.468,84.432,11.84379777]
[1773049311308,0.50601031,84.459,84.432,11.84379777]
[1773049312526,0.50601031,84.457,84.432,11.84379777]
[1773049313109,0.50601031,84.457,84.423,3.69383402]
[1773049313110,0.50601031,84.457,84.382,0.30644309]
[1773049313306,0.50601031,84.457,84.42,11.53975834]
[1773049313526,0.50601031,84.457,84.43,11.53975834]
[1773049313711,0.50601031,84.457,84.43,11.54253304]
[1773049314437,0.50601031,84.457,84.431,11.84399095]
[1773049314738,0.50601031,84.457,84.44,11.54253304]
[1773049314739,11.84048498,84.456,84.44,11.54253304]
[1773049315425,11.84048498,84.456,84.431,11.84399095]
[1773049315426,0.50601031,84.455,84.431,11.84399095]
[1773049315613,0.50601031,84.455,84.392,47.3975215]
[1773049315614,0.50601031,84.455,84.42,11.54253304]
[1773049315925,0.50601031,84.449,84.415,3.69383402]
[1773049316123,0.50601031,84.449,84.42,11.54253304]
[1773049316519,0.50601031,84.447,84.42,11.54253304]
[1773049317923,0.50601031,84.447,84.41,11.54253304]
[1773049318828,0.50601031,84.445,84.411,11.84679721]
[1773049319025,0.50601031,84.445,84.42,11.54253304]
[1773049319614,0.50601031,84.445,84.42,4.31030396]
[1773049320530,11.84137443,84.45,84.43,4.31030396]
[1773049320730,29.59788859,84.466,84.44,4.31030396]
[1773049320929,0.50601031,84.463,84.44,4.31030396]
[1773049321112,0.50601031,84.463,84.43,4.31030396]
[1773049321434,0.50601031,84.459,84.43,4.31030396]
[1773049321734,0.50601031,84.459,84.43,11.54117185]
[1773049321929,0.50601031,84.459,84.44,11.54117185]
[1773049322132,12.34537382,84.464,84.44,11.54117185]
[1773049322431,11.83884118,84.468,84.45,11.54117185]
[1773049324211,11.83884118,84.468,84.441,0.29794291]
[1773049324212,0.1,84.47,84.46,11.54117185]
[1773049324411,0.1,84.47,84.451,11.84118601]
[1773049324412,0.5134611,84.495,84.48,11.54117185]
[1773049324607,0.5134611,84.495,84.47,11.54117185]
[1773049325433,0.5134611,84.493,84.47,11.54117185]
[1773049326040,0.5134611,84.493,84.47,23.3795631]
[1773049327035,0.5134611,84.493,84.47,11.54117185]
[1773049327236,0.5134611,84.493,84.46,0.19443961]
[1773049327419,0.5134611,84.491,84.47,11.54117185]
[1773049327619,0.5134611,84.491,84.462,11.83959032]
[1773049327820,0.5134611,84.491,84.47,11.54117185]
[1773049329125,0.5134611,84.491,84.462,11.83959032]
[1773049329326,0.5134611,84.491,84.47,11.54117185]
[1773049329527,11.83471277,84.498,84.48,11.54117185]
[1773049329728,0.5134611,84.497,84.48,11.54117185]
[1773049330522,0.5134611,84.505,84.49,11.54117185]
[1773049330818,11.64117185,84.52,84.49,11.54117185]
[1773049330819,0.1,84.52,84.491,0.19028211]
[1773049331045,0.5134611,84.539,84.51,11.54117185]
[1773049331249,0.5134611,84.537,84.51,11.54117185]
[1773049331447,0.5134611,84.535,84.51,11.54117185]
[1773049332438,0.5134611,84.548,84.52,11.54117185]
[1773049332742,0.5134611,84.547,84.52,11.54117185]
[1773049332930,0.5134611,84.547,84.51,11.72985705]
[1773049333131,0.5134611,84.547,84.51,11.54117185]
[1773049333530,11.54117185,84.55,84.51,11.54117185]
[1773049333531,0.5134611,84.545,84.51,11.54117185]
[1773049333740,0.5134611,84.545,84.52,11.54117185]
[1773049334140,0.5134611,84.545,84.53,11.54117185]
[1773049334435,11.82662172,84.555,84.521,0.49448545]
[1773049334640,11.82609113,84.559,84.53,11.54117185]
[1773049334826,11.82609113,84.559,84.53,12.0356573]
[1773049335030,11.82609113,84.559,84.53,11.54117185]
[1773049335523,11.64117185,84.56,84.53,11.54117185]
[1773049336141,0.1,84.56,84.54,11.54117185]
[1773049336318,11.82340561,84.578,84.55,11.54117185]
[1773049336523,0.5134611,84.577,84.55,11.54117185]
[1773049336743,11.54117185,84.56,84.53,11.54117185]
[1773049336949,0.5134611,84.559,84.52,11.54117185]
[1773049337128,0.5134611,84.559,84.53,11.54117185]
[1773049337927,11.82620213,84.558,84.54,11.54117185]
[1773049339122,0.5134611,84.557,84.52,11.54117185]
[1773049339338,0.5134611,84.557,84.521,0.49448545]
[1773049339644,0.36470115,84.549,84.521,0.49448545]
[1773049339940,0.36470115,84.549,84.49,29.58902747]
[1773049339941,11.82899997,84.538,84.505,11.83361931]
[1773049340148,11.82899997,84.538,84.511,0.49448545]
[1773049340355,11.82842521,84.543,84.52,11.54117185]
[1773049340659,0.36397739,84.557,84.521,0.49448545]
[1773049340956,0.36326193,84.549,84.52,11.54117185]
[1773049341439,0.36326193,84.549,84.519,0.49448545]
[1773049341638,0.36326193,84.549,84.511,0.49448545]
[1773049341841,41.39268649,84.556,84.511,0.49448545]
[1773049341842,0.36326193,84.539,84.511,0.49448545]
[1773049342043,0.5134611,84.519,84.43,47.37600386]
[1773049342231,147.86249969,84.538,84.417,47.38362197]
[1773049342232,11.54117185,84.53,84.49,11.54117185]
[1773049342543,0.5134611,84.529,84.49,11.54117185]
[1773049343346,41.91496101,84.538,84.5,11.54117185]
[1773049343529,41.91496101,84.538,84.476,3.69383402]
[1773049343530,41.91496101,84.538,84.51,11.54117185]
[1773049343731,12.34246107,84.538,84.51,11.54117185]
[1773049344251,41.91496101,84.538,84.512,0.49448545]
[1773049344551,0.5134611,84.537,84.501,0.49448545]
[1773049345431,0.5134611,84.529,84.49,11.54117185]
[1773049345629,0.5134611,84.529,84.49,12.0356573]
[1773049345855,0.5134611,84.529,84.491,0.49448545]
[1773049346058,0.5134611,84.527,84.492,0.49448545]
[1773049346554,0.5134611,84.539,84.501,0.49448545]
[1773049346731,0.5134611,84.529,84.501,0.49448545]
[1773049348146,41.91985897,84.528,84.501,0.49448545]
[1773049349034,0.5134611,84.527,84.501,0.49448545]
[1773049349741,11.83039939,84.528,84.503,0.49448545]
[1773049349954,0.5134611,84.529,84.503,0.49448545]
[1773049350653,0.5134611,84.537,84.511,0.49448545]
[1773049352130,11.82927983,84.536,84.511,0.49448545]
[1773049352335,0.5134611,84.535,84.511,0.49448545]
[1773049353466,0.52136572,84.529,84.494,0.5224291]
[1773049353749,0.52136572,84.529,84.494,12.35758899]
[1773049353954,0.52136572,84.529,84.495,0.5224291]
[1773049354252,0.52136572,84.527,84.495,0.5224291]
[1773049355658,0.52136572,84.519,84.489,11.83581225]
[1773049355958,0.52136572,84.519,84.488,0.5224291]